Cogmind - Beta 13 X1 @@@ ROGUE MODE // 2023.11.26 @ 09:29:07 Player: maxwell Result: Destroyed by G-67 Veteran with Field Laser Performance ------------- Evolutions (3) 1500 Regions Visited (12) 2400 Robots Destroyed (176) 880 Value Destroyed (4987) 4987 Prototype IDs (16) 320 Alien Tech Used (0) 0 Bonus (655) 655 TOTAL SCORE: 10742 Bonus ------- High Alert Combat Kills 308 Follower Combat Kills 118 Met Data Miner 300 Friendly Fire -71 Cogmind --------- Core Integrity 0/700 Matter 300/300 Energy 98/100 System Corruption 0% Temperature Cool (21) Movement Core (50) Location -6/Proximity Caves Parts ------- > --- POWER (2) -------- (None) > --- PROPULSION (3) --- (None) > --- UTILITY (5) ------ (None) > --- WEAPON (3) ------- (None) > --- INVENTORY (5) ---- Flexi-carbon Leg Medium Reactive Plating EM Pulse Cannon Heavy Missile Launcher Great Maul Peak State ------------ > --- POWER ------------ Improved Deuterium Engine Micro Nuclear Core > --- PROPULSION ------- Armored Wheel Armored Huge Wheel > --- UTILITY ---------- Improved Heat Sink Huge Storage Unit Advanced Launcher Guidance Computer Hardened Medium Armor Plating Medium Reactive Plating > --- WEAPON ----------- Heavy Laser Gatling Laser Heavy Missile Launcher > --- INVENTORY -------- Medium Treads Medium Treads Medium Storage Unit Structural Scanner Improved Sensor Array Improved Sensor Array Improved Sensor Array Improved Signal Interpreter Improved Armor Integrity Analyzer Advanced ECM Suite Improved Propulsion Shielding Improved Medium Armor Plating Improved Medium Armor Plating Improved Medium Armor Plating Medium Reactive Plating Medium Reactive Plating EM Pulse Cannon EM Pulse Cannon EM Pulse Cannon 8R-AWN's Boregun Heavy Missile Launcher Heavy Missile Launcher Great Maul Deploy-a-Sentry [Rating: 58] Favorites ----------- Power Micro Nuclear Core Engine Improved Ion Engine Power Core Micro Nuclear Core Reactor Cold Fusion Reactor Propulsion Light Treads Treads Light Treads Leg VSS Leg Wheel Wheel Utility Huge Storage Unit Device Cooling System Storage Huge Storage Unit Processor Advanced Launcher Guidance Computer Hackware Hacking Suite Protection Improved Light Armor Plating Weapon Heavy Laser Energy Gun Heavy Laser Ballistic Gun Heavy Assault Rifle Launcher Grenade Launcher Special Weapon Plasma Cutter Impact Weapon Great Maul Build | -11 -10 -10 -9 -9 -9 -8 -8 -7 -7 -7 -7 -6 ------- Run | Jun Mat Min Mat Min Exi Min Mat Fac Low Low Dat Pro Slots Evolved 6 | . . . 2 . . . 2 2 . . . . Power 1 | . . . . . . . . 1 . . . . Propulsion 1 | . . . 1 . . . . . . . . . Utility 3 | . . . . . . . 2 1 . . . . Weapon 1 | . . . 1 . . . . . . . . . Parts Attached 153 | . 8 9 28 1 16 . 29 42 3 16 1 . Power 13 | . . 1 1 . 1 . 1 7 . 2 . . Engine 8 | . . 1 1 . . . 1 4 . 1 . . Core 4 | . . . . . . . . 3 . 1 . . Reactor 1 | . . . . . 1 . . . . . . . Propulsion 32 | . 3 1 10 . 4 . 6 4 . 3 1 . Treads 21 | . 3 1 7 . 4 . 4 2 . . . . Leg 1 | . . . . . . . 1 . . . . . Wheel 10 | . . . 3 . . . 1 2 . 3 1 . Hover . | . . . . . . . . . . . . . Flight . | . . . . . . . . . . . . . Utility 47 | . 4 1 3 1 1 . 9 17 2 9 . . Device 25 | . 2 1 1 . . . 3 8 2 8 . . Storage 4 | . 2 . . . . . 2 . . . . . Processor 4 | . . . . . . . 2 2 . . . . Hackware 1 | . . . . . . . . 1 . . . . Protection 13 | . . . 2 1 1 . 2 6 . 1 . . Artifact . | . . . . . . . . . . . . . Weapon 61 | . 1 6 14 . 10 . 13 14 1 2 . . Energy Gun 20 | . 1 2 . . . . 8 7 1 1 . . Energy Cannon . | . . . . . . . . . . . . . Ballistic Gun 23 | . . 2 11 . 8 . 1 . . 1 . . Ballistic Cannon . | . . . . . . . . . . . . . Launcher 11 | . . 2 3 . 1 . 2 3 . . . . Special Weapon 2 | . . . . . 1 . 1 . . . . . Impact Weapon 5 | . . . . . . . 1 4 . . . . Slashing Weapon . | . . . . . . . . . . . . . Piercing Weapon . | . . . . . . . . . . . . . Special Melee Weapon . | . . . . . . . . . . . . . Unidentified Prototypes 6 | . . . 1 . 2 . 3 . . . . . Parts Lost 49 | . 1 8 3 . 9 . 1 10 1 10 . 6 Power 9 | . . 2 . . 1 . . 3 . 3 . . Propulsion 14 | . . 2 2 . 4 . . . . 3 . 3 Utility 12 | . . 1 1 . 1 . 1 4 . 3 . 1 Weapon 14 | . 1 3 . . 3 . . 3 1 1 . 2 Highest Loss Streak 9 | . 1 5 1 . 9 . 1 5 1 3 . 6 To Critical Strikes 6 | . . . . . 6 . . . . . . . Average Slot Usage (%) 93 | . 98 95 77 100 96 100 99 93 90 91 69 48 Engine 5 | . 14 13 1 11 5 . 3 7 . 3 . . Core 2 | . . . . . . . . 4 15 8 . . Reactor 1 | . . . . . 3 11 5 . . . . . Treads 19 | . 26 27 18 33 32 33 22 13 . . . . Wheel 5 | . . . 5 . . . 2 6 15 18 15 12 Device 7 | . 13 13 4 . . . 8 9 15 10 15 10 Storage 9 | . 14 14 11 11 11 11 10 7 7 7 7 5 Processor 5 | . . . . . . . 7 7 15 15 15 11 Protection 6 | . . . 6 11 10 11 9 8 . 3 . . Energy Gun 11 | . 6 . 1 . . . 20 21 21 17 15 8 Ballistic Gun 14 | . 21 23 26 33 29 33 3 . . 4 . . Naked Turns 43 | . . . . . . . . . . . . 43 Heaviest Build 140 | 14 90 90 101 101 107 107 117 140 106 124 91 91 Greatest Support 62 | 20 40 40 60 60 60 60 60 62 40 40 30 30 Greatest Overweight (x) 28 | . 2 4 28 1 1 1 9 3 2 6 4 9 Average Overweight (x) 2 | . . 2 3 1 1 1 2 2 2 3 3 1 Largest Inventory Capacity 25 | . 25 25 25 25 25 25 25 25 25 25 25 25 Average Capacity 23 | . 14 25 25 25 25 25 23 25 25 25 25 19 Most Carried 25 | . 12 16 25 25 25 20 25 25 25 24 19 18 Average Carried 20 | . 9 14 20 25 19 20 20 23 24 22 18 14 Final Capacity 25 | 8 25 25 25 25 25 25 25 25 25 25 25 5 Final Carried 25 | 6 12 13 25 25 20 20 20 25 24 19 18 5 Class Distribution -------------------- 23% | Mutant 22% | Scavenger-Tank 17% | Gunner 11% | Scavenger-Gunner 10% | Scavenger-Mutant 8% | Skirmisher 5% | Tank Dominant Class ---------------- Mutant | -10/Materials Mutant | -10/Mines Scavenger-Tank | -9/Materials Scavenger-Tank | -9/Mines Scavenger-Tank | -9/Exiles Scavenger-Tank | -8/Mines Gunner | -8/Materials Gunner | -7/Factory Skirmisher | -7/Lower Caves Scavenger-Gunner | -7/Lower Caves Scavenger-Mutant | -7/Data Miner Mutant | -6/Proximity Caves Resources | -11 -10 -10 -9 -9 -9 -8 -8 -7 -7 -7 -7 -6 ----------- Run | Jun Mat Min Mat Min Exi Min Mat Fac Low Low Dat Pro Matter Collected 4140 | 200 157 325 1138 60 715 53 551 495 80 366 . . Remotely 68 | . . . . . . . 68 . . . . . Salvage Created 6338 | . 399 112 1895 . 386 147 1369 1423 98 509 . . Parts 391 | . 32 16 122 . 42 11 64 77 3 24 . . Haulers Intercepted 10 | . . . 4 . . . 4 2 . . . . Recyclers Shooed 1 | . 1 . . . . . . . . . . . Parts Field Recycled . | . . . . . . . . . . . . . Retrieved Matter . | . . . . . . . . . . . . . Parts Self-Destructed 27 | . . . . . . . . . 1 24 . 2 Prevented . | . . . . . . . . . . . . . Kills | -11 -10 -10 -9 -9 -9 -8 -8 -7 -7 -7 -7 -6 ------- Run | Jun Mat Min Mat Min Exi Min Mat Fac Low Low Dat Pro Combat Hostiles Destroyed 119 | . 12 8 35 . 3 4 21 26 2 8 . . Guns 95 | . 11 6 29 . 2 4 16 19 2 6 . . AOE 21 | . 1 2 6 . 1 . 5 6 . . . . Classes Destroyed 21 | . 6 . 6 . 3 1 . 2 1 2 . . Worker 12 | . 1 . 4 . . . 4 3 . . . . Builder 5 | . 1 . 3 . . . . 1 . . . . Tunneler 2 | . 2 . . . . . . . . . . . Hauler 10 | . . . 4 . . . 4 2 . . . . Recycler 6 | . . . 2 . . . 3 1 . . . . Operator 2 | . . . . . . . . 2 . . . . Turret 1 | . . . . . 1 . . . . . . . Watcher 14 | . 2 . 4 . . . 5 3 . . . . Swarmer 32 | . 6 8 6 . . 2 6 3 . 1 . . Grunt 39 | . 6 . 18 . . . 8 7 . . . . Brawler 2 | . . . 1 . . . . 1 . . . . Duelist 4 | . . . 1 . . . . 3 . . . . Protector 1 | . . . 1 . . . . . . . . . Sentry 18 | . . . 8 . . . 5 4 . 1 . . Specialist 2 | . . . . . . . . . . 2 . . Hunter 7 | . . . . . . 2 2 . . 3 . . Programmer 10 | . . . . . . . . 8 1 1 . . Zionite 5 | . . . . . 5 . . . . . . . Tinkerer 1 | . . . . . . . . . . 1 . . Assembled 2 | . . . . . 2 . . . . . . . Mutant 1 | . . . . . . . . . 1 . . . Best Kill Streak 8 | . 8 3 8 . 3 2 7 5 1 1 . . Combat Bots Only 7 | . 3 3 6 . 2 2 7 4 1 1 . . Max Kills in Single Turn 3 | . 2 2 2 . 2 1 2 3 1 1 . . Gunslinging 1 | . . . 1 . . . . 1 . . . . Exploded 3 | . 1 2 1 . 1 . 2 3 . . . . Melee . | . . . . . . . . . . . . . Uniques/NPCs Destroyed 4 | . . . . . 4 . . . . . . . 8R-AWN (-9/Exiles) EX-BIN (-9/Exiles) EX-DEC (-9/Exiles) EX-HEX (-9/Exiles) Combat | -11 -10 -10 -9 -9 -9 -8 -8 -7 -7 -7 -7 -6 -------- Run | Jun Mat Min Mat Min Exi Min Mat Fac Low Low Dat Pro Damage Taken 7700 | . 384 806 841 . 1193 208 855 2113 118 780 . 402 Core 1178 | . 29 159 140 . 62 13 68 380 . 151 . 176 Absorbed by Shields . | . . . . . . . . . . . . . Ignored by Resistances 68 | . . . . . . . . 27 . 41 . . Core Remaining (%) 64 | 100 . 24 . . . 46 87 . . . . . Volleys Fired 461 | . 51 19 106 . 83 12 77 65 5 43 . . Largest 3 | . 2 2 3 . 3 3 3 3 3 3 . . Hottest 229 | . 70 95 69 . 76 76 207 229 229 218 . . Shots Fired 1158 | . 102 37 302 . 191 36 213 179 11 87 . . Gun 1130 | . 102 36 294 . 186 36 205 173 11 87 . . Cannon . | . . . . . . . . . . . . . Launcher 24 | . . 1 8 . 1 . 8 6 . . . . Special 4 | . . . . . 4 . . . . . . . Kinetic 681 | . 87 35 294 . 186 36 19 . . 24 . . Thermal 449 | . 15 1 . . . . 186 173 11 63 . . Explosive 24 | . . 1 8 . 1 . 8 6 . . . . Electromagnetic . | . . . . . . . . . . . . . Impact 4 | . . . . . 4 . . . . . . . Robot Hit Streak 18 | . 11 9 18 . 12 4 10 15 8 7 . . Robot Miss Streak 6 | . 4 2 6 . 4 3 5 4 2 5 . . Penetration Max . | . . . . . . . . . . . . . Secondary Targets 18 | . 2 2 7 . 1 . 3 3 . . . . Max Gunslinging Chain 1 | . 1 1 1 . 1 . 1 1 . . . . Shots Hit Robots 690 | . 65 22 172 . 132 16 103 124 9 47 . . Core Hits 359 | . 32 11 97 . 39 6 58 87 8 21 . . Critical Kills 8 | . . . 3 . 2 1 . . . 2 . . Critical Parts Destroyed 10 | . . . 2 . 2 2 1 . . 3 . . Critical Strikes 40 | . 2 . 5 . 4 3 15 4 . 7 . . Burn 22 | . 2 . . . . . 14 4 . 2 . . Destroy 18 | . . . 5 . 4 3 1 . . 5 . . Melee Attacks 14 | . . . . . . . 5 9 . . . . Impact 14 | . . . . . . . 5 9 . . . . Slashing . | . . . . . . . . . . . . . Piercing . | . . . . . . . . . . . . . Sneak Attacks . | . . . . . . . . . . . . . Combat Hostiles . | . . . . . . . . . . . . . Follow-up Attacks . | . . . . . . . . . . . . . Damage Inflicted 14088 | . 1169 271 2771 2 1803 229 2842 3814 231 956 . . Guns 11120 | . 857 182 2222 . 1757 216 2069 2630 231 956 . . Cannons . | . . . . . . . . . . . . . Explosions 2881 | . 312 89 545 . 32 . 735 1168 . . . . Melee 34 | . . . . . . . 34 . . . . . Ramming 39 | . . . 4 2 . 13 4 16 . . . . Kinetic 5460 | . 706 182 2222 . 1757 216 180 . . 197 . . Thermal 5660 | . 151 . . . . . 1889 2630 231 759 . . Explosive 2815 | . 312 89 479 . 32 . 735 1168 . . . . Electromagnetic 66 | . . . 66 . . . . . . . . . Impact 48 | . . . . . 14 . 34 . . . . . Slashing . | . . . . . . . . . . . . . Piercing . | . . . . . . . . . . . . . Highest Corruption 6 | . . . . . . . . 6 2 3 . . Average Corruption 2 | . . . . . . . . 2 1 2 . . Corruption Purged 11 | . . . . . . . . 5 2 4 . . Corruption Blocked . | . . . . . . . . . . . . . Effects 37 | . . . . . . . . 30 3 4 . . Message Errors 11 | . . . . . . . . 8 2 1 . . Matter Fused 16 | . . . . . . . . 13 1 2 . . Heat Flow Errors 4 | . . . . . . . . 3 . 1 . . Data Loss (minor) 2 | . . . . . . . . 2 . . . . Data Loss (major) 1 | . . . . . . . . 1 . . . . Misfires 3 | . . . . . . . . 3 . . . . Overload Shots . | . . . . . . . . . . . . . Overflow Damage 85 | . 8 5 . . . . 47 25 . . . . Projectiles . | . . . . . . . . . . . . . Explosions 85 | . 8 5 . . . . 47 25 . . . . Melee . | . . . . . . . . . . . . . Knockbacks . | . . . . . . . . . . . . . Impact . | . . . . . . . . . . . . . Kinetic . | . . . . . . . . . . . . . Secondary . | . . . . . . . . . . . . . Self-Inflicted Damage 313 | . 22 40 . . . . . 251 . . . . Shots 7 | . 1 1 . . . . . 5 . . . . Rammed 5 | . . 1 1 1 . 1 . 1 . . . . Targets Rammed 6 | . . 1 1 1 . 1 1 1 . . . . Kicked . | . . . . . . . . . . . . . Crushed 1 | . . . . . . . 1 . . . . . Highest Temperature 476 | . 54 44 204 . 99 . 300 476 182 346 . . Average Temperature 87 | . 21 28 36 . 60 . 95 132 97 110 . . Received Heat Transfer 1434 | . 105 6 312 . . . 342 450 12 24 . 183 Effects 12 | . . . . . . . 1 3 . 8 . . Shutdowns 1 | . . . . . . . . . . 1 . . Energy Bleed 2 | . . . . . . . 1 . . 1 . . Interference 8 | . . . . . . . . 3 . 5 . . Matter Decay 1 | . . . . . . . . . . 1 . . Siege Activations . | . . . . . . . . . . . . . Robots Corrupted . | . . . . . . . . . . . . . Combat Hostiles . | . . . . . . . . . . . . . Parts Fried . | . . . . . . . . . . . . . Impact Corruptions . | . . . . . . . . . . . . . Robots Melted 3 | . . . . . . . . 1 . 2 . . Combat Hostiles 3 | . . . . . . . . 1 . 2 . . Parts Melted 30 | . . . . . 1 . 8 13 2 6 . . Heat Transferred 12885 | . 592 . . . . . 4662 5485 436 1710 . . Parts Sabotaged . | . . . . . . . . . . . . . Parts Stolen 4 | . . . . . . . . . . 4 . . Parts Stripped . | . . . . . . . . . . . . . Power Chain Reactions 2 | . . . 2 . . . . . . . . . Missiles Intercepted . | . . . . . . . . . . . . . Alert | -11 -10 -10 -9 -9 -9 -8 -8 -7 -7 -7 -7 -6 ------- Run | Jun Mat Min Mat Min Exi Min Mat Fac Low Low Dat Pro Peak Influence 961 | . 202 326 961 374 . 161 330 564 . . . . Initial 374 | . . 37 . 374 . . 62 114 . . . . Average 211 | . 90 152 371 183 . 89 181 228 . . . . Maximum Alert Level 3 | . 1 1 3 1 . . 1 2 . . . . Low Security (%) 55 | . 85 71 32 67 . 100 48 51 . . . . Level 1 31 | . 14 28 25 32 . . 51 27 . . . . Level 2 9 | . . . 24 . . . . 21 . . . . Level 3 2 | . . . 16 . . . . . . . . . Level 4 . | . . . . . . . . . . . . . Level 5 . | . . . . . . . . . . . . . High Security . | . . . . . . . . . . . . . Max Security . | . . . . . . . . . . . . . Squads Dispatched 16 | . 2 . 5 . . . . 9 . . . . Investigation 2 | . 1 . . . . . . 1 . . . . Extermination 7 | . . . . . . . . 7 . . . . Reinforcement 5 | . 1 . 3 . . . . 1 . . . . Assault 2 | . . . 2 . . . . . . . . . Garrison . | . . . . . . . . . . . . . Intercept . | . . . . . . . . . . . . . Searches Triggered . | . . . . . . . . . . . . . Construction Impeded 1 | . . . 1 . . . . . . . . . Haulers Reinforced . | . . . . . . . . . . . . . Active Scanning Responses . | . . . . . . . . . . . . . Cargo Convoy Interrupts . | . . . . . . . . . . . . . Stealth | -11 -10 -10 -9 -9 -9 -8 -8 -7 -7 -7 -7 -6 --------- Run | Jun Mat Min Mat Min Exi Min Mat Fac Low Low Dat Pro Distress Signals 12 | . 1 . 9 . . . 2 . . . . . Communications Jammed . | . . . . . . . . . . . . . Distress Signals . | . . . . . . . . . . . . . Times Spotted 212 | . 23 15 58 . 12 7 37 37 3 13 . 7 Peak Tracking Total 9 | . 5 3 9 . 9 4 8 5 1 4 . 4 Tactical Retreats 15 | . 1 . 6 . 4 2 . 1 . . . 1 Traps | -11 -10 -10 -9 -9 -9 -8 -8 -7 -7 -7 -7 -6 ------- Run | Jun Mat Min Mat Min Exi Min Mat Fac Low Low Dat Pro Traps Triggered 9 | . 2 . 2 . . . 1 4 . . . . Indirectly . | . . . . . . . . . . . . . Trap Hack Attempts . | . . . . . . . . . . . . . Triggered . | . . . . . . . . . . . . . Disarmed . | . . . . . . . . . . . . . Reprogrammed . | . . . . . . . . . . . . . Reused . | . . . . . . . . . . . . . Traps Extracted . | . . . . . . . . . . . . . Installed . | . . . . . . . . . . . . . Triggered . | . . . . . . . . . . . . . Machines | -11 -10 -10 -9 -9 -9 -8 -8 -7 -7 -7 -7 -6 ---------- Run | Jun Mat Min Mat Min Exi Min Mat Fac Low Low Dat Pro Machines Disabled 26 | . 3 . 2 . 11 . 1 7 1 1 . . Max in Single Turn 2 | . 1 . 1 . 2 . 1 2 1 1 . . Machines Repaired . | . . . . . . . . . . . . . Machines Sabotaged . | . . . . . . . . . . . . . Overloaded Fab Kills . | . . . . . . . . . . . . . Hacking | -11 -10 -10 -9 -9 -9 -8 -8 -7 -7 -7 -7 -6 --------- Run | Jun Mat Min Mat Min Exi Min Mat Fac Low Low Dat Pro Machines Accessed 14 | . 1 . 2 . 1 . 2 6 . . 2 . Terminals 7 | . 1 . 2 . . . 1 3 . . . . Fabricators 2 | . . . . . . . . 2 . . . . Repair Stations . | . . . . . . . . . . . . . Recycling Units . | . . . . . . . . . . . . . Scanalyzers . | . . . . . . . . . . . . . Garrison Access 2 | . . . . . . . 1 1 . . . . Total Hacks 42 | . 2 . 4 . 1 . 6 13 . . 16 . Successful 24 | . . . 1 . 1 . 3 3 . . 16 . Failed 18 | . 2 . 3 . . . 3 10 . . . . Catastrophic 3 | . . . . . . . . 3 . . . . Database Lockouts . | . . . . . . . . . . . . . Manual 21 | . 2 . 4 . . . 6 9 . . . . Terminals 19 | . 2 . 4 . . . 5 8 . . . . Fabricators 4 | . . . . . . . . 4 . . . . Repair Stations . | . . . . . . . . . . . . . Recycling Units . | . . . . . . . . . . . . . Scanalyzers . | . . . . . . . . . . . . . Garrison Access 2 | . . . . . . . 1 1 . . . . Terminal Hacks 19 | . . . . . 1 . . 2 . . 16 . Record 1 | . . . . . 1 . . . . . . . Part Schematic 9 | . . . . . . . . . . . 9 . Robot Schematic 4 | . . . . . . . . . . . 4 . Prototype ID Bank 3 | . . . . . . . . . . . 3 . Branch Access Points 1 | . . . . . . . . 1 . . . . Unreport Threat 1 | . . . . . . . . 1 . . . . Fabricator Hacks 1 | . . . . . . . . 1 . . . . Network Status 1 | . . . . . . . . 1 . . . . Repair Station Hacks . | . . . . . . . . . . . . . Recycling Unit Hacks . | . . . . . . . . . . . . . Scanalyzer . | . . . . . . . . . . . . . Garrison Access Hacks . | . . . . . . . . . . . . . Unauthorized Hacks 4 | . . . 1 . . . 3 . . . . . Terminals 3 | . . . 1 . . . 2 . . . . . Botnet 2 | . . . 1 . . . 1 . . . . . Operators 1 | . . . . . . . 1 . . . . . Fabricators . | . . . . . . . . . . . . . Repair Stations . | . . . . . . . . . . . . . Recycling Units . | . . . . . . . . . . . . . Scanalyzers . | . . . . . . . . . . . . . Garrison Access 1 | . . . . . . . 1 . . . . . Watchers 1 | . . . . . . . 1 . . . . . Data Cores Recovered 1 | . . . . . . . . 1 . . . . Used . | . . . . . . . . . . . . . Hacking Detections 10 | . 1 . 2 . . . 2 5 . . . . Full Trace Events 1 | . . . . . . . . 1 . . . . Feedback Events . | . . . . . . . . . . . . . Feedback Blocked . | . . . . . . . . . . . . . Robot Schematics Acquired 4 | . . . . . . . . . . . 4 . Robots Built . | . . . . . . . . . . . . . Authchips . | . . . . . . . . . . . . . Time . | . . . . . . . . . . . . . Total Robot Build Rating . | . . . . . . . . . . . . . Part Schematics Acquired 9 | . . . . . . . . . . . 9 . Parts Built . | . . . . . . . . . . . . . Authchips . | . . . . . . . . . . . . . Time . | . . . . . . . . . . . . . Total Part Build Rating . | . . . . . . . . . . . . . Parts Repaired . | . . . . . . . . . . . . . Time . | . . . . . . . . . . . . . Parts Recycled . | . . . . . . . . . . . . . Recycled Matter . | . . . . . . . . . . . . . Retrieved Matter . | . . . . . . . . . . . . . Retrieved Components . | . . . . . . . . . . . . . Parts Scanalyzed . | . . . . . . . . . . . . . Part Schematics Acquired . | . . . . . . . . . . . . . Parts Damaged . | . . . . . . . . . . . . . Bothacking | -11 -10 -10 -9 -9 -9 -8 -8 -7 -7 -7 -7 -6 ------------ Run | Jun Mat Min Mat Min Exi Min Mat Fac Low Low Dat Pro Used RIF Installer . | . . . . . . . . . . . . . Robots Hacked . | . . . . . . . . . . . . . Non-combat . | . . . . . . . . . . . . . Combat . | . . . . . . . . . . . . . Robot Hacks Applied . | . . . . . . . . . . . . . Relay Couplers Released . | . . . . . . . . . . . . . Fabnet Peak Effective % . | . . . . . . . . . . . . . Robots Rewired . | . . . . . . . . . . . . . Allies Hacked . | . . . . . . . . . . . . . Hacks Repelled . | . . . . . . . . . . . . . Allies | -11 -10 -10 -9 -9 -9 -8 -8 -7 -7 -7 -7 -6 -------- Run | Jun Mat Min Mat Min Exi Min Mat Fac Low Low Dat Pro Total Allies 5 | . . 1 . 3 . . . . . . . 1 Largest Group 3 | . . 1 . 3 2 . . . . . . 1 Highest-Rated Group 96 | . . 31 . 70 39 . . . . . . 96 Highest-Rated Ally 96 | . . 31 . 31 31 . . . . . . 96 Total Orders . | . . . . . . . . . . . . . Ally Attacks 22 | . . 16 . . . . . . . . . 6 Total Damage 742 | . . 275 . . . . . . . . . 467 Kills 6 | . . 5 . . . . . . . . . 1 Allies Corrupted . | . . . . . . . . . . . . . Allies Melted . | . . . . . . . . . . . . . Intel | -11 -10 -10 -9 -9 -9 -8 -8 -7 -7 -7 -7 -6 ------- Run | Jun Mat Min Mat Min Exi Min Mat Fac Low Low Dat Pro Robot Analysis Total . | . . . . . . . . . . . . . Derelict Logs Recovered 4 | . . . . 2 . . . . 1 1 . . Drone Launches . | . . . . . . . . . . . . . Drone Recoveries . | . . . . . . . . . . . . . Exploration | -11 -10 -10 -9 -9 -9 -8 -8 -7 -7 -7 -7 -6 ------------- Run | Jun Mat Min Mat Min Exi Min Mat Fac Low Low Dat Pro Turns Passed 15714 | . 1182 962 1943 1248 1942 305 2872 2502 424 2075 110 149 Spaces Moved 6944 | 1 511 268 654 516 662 108 1133 1170 313 1371 75 162 Core 93 | . . . 5 . . . . . . . . 88 Treads 3670 | . 468 268 386 516 662 108 746 516 . . . . Legs 44 | 1 43 . . . . . . . . . . . Wheels 3137 | . . . 263 . . . 387 654 313 1371 75 74 Hover . | . . . . . . . . . . . . . Flight . | . . . . . . . . . . . . . Fastest Speed 50 | 120 120 320 110 240 240 246 120 125 125 113 125 50 Average Speed 196 | 120 195 326 237 240 242 246 218 183 125 134 139 92 Slowest Speed 1450 | 120 320 480 1450 240 246 246 250 243 125 170 140 215 Overloaded Moves . | . . . . . . . . . . . . . Propulsion Burnouts . | . . . . . . . . . . . . . Robots Hopped . | . . . . . . . . . . . . . Cave-ins Triggered . | . . . . . . . . . . . . . Exploration Rate (%) 59 | 2 95 60 74 97 75 34 68 40 50 74 68 31 Regions Visited 12 Branch Regions 8 Pre-discovered Areas 2 | . . 1 . . 1 . . . . . . . Known Exits Taken 4 | . . . . . . . . 1 1 1 1 . Unknown Exits Taken 8 | 1 1 1 1 1 1 1 1 . . . . . Scrap Searched 10 | . . 2 . 3 . 1 . . 2 1 . 1 Spaces Dug 28 | . . . 4 . . . 15 9 . . . . Terrain Destroyed 194 | . 19 8 43 . 5 7 43 68 . 1 . . Melee 11 | . . . . . . . 2 9 . . . . Projectile 9 | . . 1 . . 1 7 . . . . . . AOE 173 | . 19 7 43 . 4 . 41 59 . . . . Terrain Rammed . | . . . . . . . . . . . . . Walls Destroyed . | . . . . . . . . . . . . . Machines Disabled . | . . . . . . . . . . . . . Actions | -11 -10 -10 -9 -9 -9 -8 -8 -7 -7 -7 -7 -6 --------- Run | Jun Mat Min Mat Min Exi Min Mat Fac Low Low Dat Pro Total 8094 | . 598 325 856 526 850 120 1368 1348 334 1527 80 162 Wait 302 | . 8 21 22 8 70 . 43 21 13 91 5 . Move 6932 | . 510 267 653 515 661 107 1132 1169 312 1370 74 162 Hop . | . . . . . . . . . . . . . Pick Up 121 | . 13 7 27 . 12 . 36 21 . 5 . . Fast Attach 39 | . 2 . 10 . 1 . 8 15 1 2 . . Attach 55 | . 4 6 7 . 8 . 11 9 1 8 1 . Detach 7 | . . . 3 . . . 3 . . 1 . . Swap 59 | . 2 3 11 1 7 . 10 18 1 6 . . Drop 98 | . 8 1 16 1 8 . 42 20 1 1 . . Fire 461 | . 51 19 106 . 83 12 77 65 5 43 . . Melee 14 | . . . . . . . 5 9 . . . . Ram . | . . . . . . . . . . . . . Kick . | . . . . . . . . . . . . . Crush 6 | . . 1 1 1 . 1 1 1 . . . . Escape Stasis . | . . . . . . . . . . . . . Rewire . | . . . . . . . . . . . . . Trap . | . . . . . . . . . . . . . Miscellaneous . | . . . . . . . . . . . . . Route ------- -11/Junkyard -10/Materials (discovered 6 exits: *Mat x3 / [*Min x2] / [*Sub]) -10/Mines (discovered 2 exits: *Mat / [*Sub]) -9/Materials (discovered 6 exits: *Mat x2 / [*Min x2] / [*Sto x2]) -9/Mines (discovered 3 exits: *Mat x2 / *Exi) -9/Exiles -8/Mines -8/Materials -7/Factory (discovered 4 exits: *Fac x2 / *Low x2) -7/Lower Caves -7/Lower Caves (discovered 2 exits: *Fac / *Dat) -7/Data Miner -6/Proximity Caves History --------- Turn | Location | Event 1 | -11/Junkyard | Discovered new exit (range 0) 1 | -11/Junkyard | Entered Materials 134 | -10/Materials | Discovered new exit (range 6) 224 | -10/Materials | Discovered new exit (range 5) 234 | -10/Materials | Discovered new exit (range 10) 311 | -10/Materials | Build established: Mutant 405 | -10/Materials | Discovered new exit (range 8) 487 | -10/Materials | Discovered new exit (range 12) 693 | -10/Materials | Discovered new exit (range 5) 1183 | -10/Materials | Entered Mines 1186 | -10/Mines | Escorted by a lone wolf Derelict 1204 | -10/Mines | Met a Derelict bent on vengeance 1206 | -10/Mines | Learned location of Storage (-9) 1779 | -10/Mines | Discovered new exit (range 16) 1926 | -10/Mines | Discovered new exit (range 8) 2084 | -10/Mines | Assembled infested the area 2095 | -10/Mines | Core integrity fell below 50% 2137 | -10/Mines | Lost 5 parts (1p2n2w) 2145 | -10/Mines | Entered Materials 2145 | -9/Materials | Evolved 2 slots: Propulsion x1, Weapon x1 2894 | -9/Materials | Discovered new exit (range 9) 2905 | -9/Materials | Discovered new exit (range 9) 3242 | -9/Materials | Build established: Scavenger-Tank 3335 | -9/Materials | Discovered new exit (range 16) 3643 | -9/Materials | Discovered new exit (range 11) 3645 | -9/Materials | Discovered new exit (range 5) 3745 | -9/Materials | First assault squad dispatched 4069 | -9/Materials | Discovered new exit (range 8) 4088 | -9/Materials | Entered Mines 4129 | -9/Mines | Learned Materials terminal intel 4207 | -9/Mines | Received a Mining Laser from a helpful Derelict 4397 | -9/Mines | Discovered new exit (range 5) 4589 | -9/Mines | Found a hidden stash of uninstalled traps 4620 | -9/Mines | Discovered new exit (range 15) 4793 | -9/Mines | A weapon hastily lodged in a ceiling crevice suddenly fell to the ground 5307 | -9/Mines | Learned Materials non-interactive machine intel 5316 | -9/Mines | Deemed a non-threat by the Exiles lab entrance 5316 | -9/Mines | Discovered new exit (range 5) 5336 | -9/Mines | Entered Exiles 5336 | -9/Exiles | Accompanied by 2 allies 5366 | -9/Exiles | Led the pair of lost Derelicts to a safe place 5396 | -9/Exiles | Met 8R-AWN 5435 | -9/Exiles | Met EX-HEX 5531 | -9/Exiles | Met EX-DEC 5540 | -9/Exiles | Learned location of Zion (-6) 6134 | -9/Exiles | Attacked by the Exiles 6305 | -9/Exiles | Core integrity fell below 50% 6339 | -9/Exiles | Lost 9 parts (1p4n1u3w) 6339 | -9/Exiles | Destroyed 8R-AWN 6358 | -9/Exiles | Found Prototype Ballistic Gun 6397 | -9/Exiles | Identified 8R-AWN's Boregun 6573 | -9/Exiles | Destroyed EX-BIN 6765 | -9/Exiles | Destroyed EX-DEC 6800 | -9/Exiles | Destroyed EX-HEX 6863 | -9/Exiles | Found Deploy-a-Sentry 7035 | -9/Exiles | Build established: Scavenger-Mutant 7258 | -9/Exiles | Discovered new exit (range 10) 7278 | -9/Exiles | Left Exiles lab with Deploy-a-Sentry 7278 | -9/Exiles | Entered Mines 7546 | -8/Mines | Discovered new exit (range 16) 7583 | -8/Mines | Entered Materials 7583 | -8/Materials | Evolved 2 slots: Utility x2 7584 | -8/Materials | Loaded intel: 35 non-interactive machine locations 7585 | -8/Materials | Loaded intel: 12 terminal locations 7611 | -8/Materials | Build established: Scavenger-Tank 7701 | -8/Materials | Destroyed 7 combat bots 7950 | -8/Materials | Build established: Scavenger-Mutant 8463 | -8/Materials | Build established: Gunner 8785 | -8/Materials | Discovered new exit (range 3) 9643 | -8/Materials | Build established: Tank 10009 | -8/Materials | Build established: Gunner 10455 | -8/Materials | Entered Factory 10455 | -7/Factory | Evolved 2 slots: Power x1, Utility x1 11580 | -7/Factory | Build established: Scavenger-Gunner 12189 | -7/Factory | Lost 5 parts (2p2u1w) 12444 | -7/Factory | Build established: Mutant 12454 | -7/Factory | Identified exit to Lower Caves 12659 | -7/Factory | Discovered new exit (range 10) 12693 | -7/Factory | Core integrity fell below 50% 12952 | -7/Factory | Discovered new exit (range 12) 12957 | -7/Factory | Entered Lower Caves 13004 | -7/Lower Caves | Attacked by a delusional Derelict stockpiling parts 13167 | -7/Lower Caves | Learned Factory machine intel 13332 | -7/Lower Caves | Spotted B-75 Beast 13372 | -7/Lower Caves | Discovered new exit (range 7) 13379 | -7/Lower Caves | Identified exit to Lower Caves 13381 | -7/Lower Caves | Entered another Lower Caves area 13411 | -7/Lower Caves | Learned Factory interactive machine intel 13425 | -7/Lower Caves | Discovered new exit (range 12) 13444 | -7/Lower Caves | Attracted the attention of an 0b10 checkpoint 13477 | -7/Lower Caves | Acquired the password to a Derelict Tinkerer's latest research 13498 | -7/Lower Caves | Build established: Skirmisher 13875 | -7/Lower Caves | Encountered a Warlord checkpoint 13975 | -7/Lower Caves | Caught by Unaware searching for contraband prototypes 14230 | -7/Lower Caves | Caught by Unaware searching for contraband prototypes 14279 | -7/Lower Caves | Lost 3 parts (1p1n1u) 14408 | -7/Lower Caves | Lost 3 parts (1n1u1w) 14425 | -7/Lower Caves | Identified exit to Factory 14724 | -7/Lower Caves | Build established: Scavenger-Gunner 15425 | -7/Lower Caves | Spotted M2-PHS(f) 15425 | -7/Lower Caves | Spotted TY-UTI(f) 15426 | -7/Lower Caves | Encountered a Master Thief 15426 | -7/Lower Caves | Encountered a Master Thief 15426 | -7/Lower Caves | Spotted RY-G8I(f) 15427 | -7/Lower Caves | Encountered a Master Thief 15427 | -7/Lower Caves | Spotted NZ-II2(f) 15428 | -7/Lower Caves | Encountered a Master Thief 15428 | -7/Lower Caves | Deploy-a-Sentry stolen by Master Thief 15429 | -7/Lower Caves | Mic. Fission Core stolen by Master Thief 15434 | -7/Lower Caves | 8R-AWN's Boregun stolen by Master Thief 15447 | -7/Lower Caves | Discovered new exit (range 8) 15450 | -7/Lower Caves | Imp. Medium Armor Plating stolen by Master Thief 15455 | -7/Lower Caves | Identified exit to Data Miner 15456 | -7/Lower Caves | Entered Data Miner 15456 | -7/Data Miner | Discovered new exit (range 6) 15483 | -7/Data Miner | Met Data Miner 15526 | -7/Data Miner | Received God Mode back door access code from Data Miner 15564 | -7/Data Miner | Identified exit to Proximity Caves 15566 | -7/Data Miner | Entered Proximity Caves 15638 | -6/Proximity Caves | Core integrity fell below 20% 15672 | -6/Proximity Caves | Released all parts (4) 15701 | -6/Proximity Caves | Lost 6 parts (3n1u2w) 15715 | -6/Proximity Caves | Destroyed by G-67 Veteran with Field Laser Last Messages --------------- Now off with you. 15564_ EXIT=IDENTIFIED: PROXIMITY CAVES LOCATION=PROXIMITY CAVES GOAL=ESCAPE 15597_ Chain reaction triggered in Lgt. Angular Momentum Engine. 15635_ Wheel destroyed. 15643_ Hvy. Laser destroyed. 15668_ Imp. Sensor Array destroyed. 15670_ Wheel destroyed. 15672_ Released Imp. Cooling System. 15672_ Released Imp. Signal Interpreter. 15672_ Released Huge Storage Unit. 15672_ Released Adv. Launcher Guidance Computer. 15687_ Searching scrap... 15687_ Found Mak. System Shield. 15687_ Found Coil Gun. 15687_ Found Imp. Power Shielding. 15687_ Found 15 Matter. 15706_ A derelict emerges from the shadows: "Hey! In the mood for some fun?" Map ----- +----------------------------------------------------+ | # #########??????????????????????????? | | # #??????????????????????????? | | # #??????????????????????????? | | ####### #??????????????????????????? | | ##?????# #??????????????????????????? | | #??????# ####???????????????????????? | | ## ##??????# #???????????????????????? | | #### ##???????#### #???????????????????????? | | ???# ##???????????# #???????????????????????? | | #??# #????????##### ##??????????????????????? | | ?? #???????## #??????????????????????? | | ?? ##???????# #??????????????????????? | | ? ###????????# #??????????????????????? | | ? #??????????# ##??????????????????????? | | ??? ???##### ##???????????????????????? | | ??? # ##????????????????????????? | | ??? ##?????????????????????????? | | ?????# # ###??????????????????????????? | | ?????## ## #??###???????????????????????? | | ??????# ??# #?## #???????????????????????? | | ??????# ???# #?# #???????????????????????? | | ????? ?????# ### #?#######???????????????? | | ????? ??????# ## #? ????????????????? | | ??????? ???????# # g # ??????????????????? | | ??????? ??????????# g# #????????????????????? | | ??????????????????# g@ ###""????????????????? | | ??????????????????#### """""????????????????? | | ?????????????????????### """ ??????????????? | | ???????????????????????# " """???????????????? | | ???????????????????????#$ """"""???????????????? | | ???????????????????????### """"""???????????????? | | ?????????????????????????? """""????????????????? | | ?????????????????????????? " "?????????????????? | | ?????????????????????????? " "?????????????????? | | ?????????????????????????? ""??????????????????? | | ?????????????????????????? ??????????????????? | | ?????????????????????????? ?????????????????? | | ???????????????????????????####??????????????????? | | ?????????????????????????????????????????????????? | | ?????????????????????????????????????????????????? | | ?????????????????????????????????????????????????? | | ?????????????????????????????????????????????????? | | ?????????????????????????????????????????????????? | | ?????????????????????????????????????????????????? | | ?????????????????????????????????????????????????? | | ?????????????????????????????????????????????????? | | ?????????????????????????????????????????????????? | | ?????????????????????????????????????????????????? | | ?????????????????????????????????????????????????? | | ?????????????????????????????????????????????????? | +----------------------------------------------------+ Best States ------------- Heat Dissipation 78 Energy Generation 27 Energy Capacity 480 Matter Stores 300 Matter Capacity 300 Sight Range 16 Robot Scan Range 15 Terrain Scan Density 10 Armor Coverage 450 Resistance: KI 30 Evasion (%) 55 Launcher Accuracy 40 Target Analysis 6 Recoil Reduction 3 Offensive Hacking 10 Item Schematics ----------------- Lgt. Regenerative Plating | -7/Data Miner | Free Cld. Aerolev Unit | -7/Data Miner | Free Exp. Weapon Shielding | -7/Data Miner | Free Combat Drone Bay | -7/Data Miner | Free Arm. Medium Treads | -7/Data Miner | Free Prc. Rocket Launcher | -7/Data Miner | Free Adv. Drone Bay | -7/Data Miner | Free Smartbomb Launcher | -7/Data Miner | Free Matter Neutralizer | -7/Data Miner | Free Robot Schematics ------------------ S-27 Virus | -7/Data Miner | Free E-15 Imp | -7/Data Miner | Free R-10 Processor | -7/Data Miner | Free H-66 Slayer | -7/Data Miner | Free Fabricated ------------ Nothing Alien Tech Used ----------------- None Achievements -------------- None Challenges ------------ None Game ------ Seed TitaniumShockThrower Manual? 0 Play Time 00:56:10 Cumulative 381.4 hours Start 2023.11.23 @ 12:11:34 End 2023.11.26 @ 09:29:07 Sessions 3 Manual Loads 0 Difficulty Rogue Special Mode None Game No. 560 Rogue 533 Adventurer 4 Explorer 23 Win Type - Total 20 Types 14/0/2/2/1/0/0/1/0 Lore% 81 Gallery% 92 Achievement% 83 Wizard Run 0 Options --------- ASCII 0 Keyboard 1 Movement Numpad Keybinds 0 Fullscreen 2 Font 18/SmallcapsGlow Map View 76x50 Tactical HUD 1 Map Filters NONE Filters NONE Steam 1 RUN: 13a1d804-c8f1-471d-88cc-b205e4986128